fUSD/lending_fUSD_20240422
["ID","MTS","AMOUNT","RATE_DAILY","PERIOD"]
[323236187,1713823838189,-16977.97448994,0.00012878,2]
[323236189,1713823838199,-156.70914187,0.00012878,2]
[323236191,1713823838208,-155.45900507,0.00012878,2]
[323236193,1713823838217,-207.28883958,0.00012878,2]
[323236195,1713823838226,-305.07906936,0.00012878,2]
[323236197,1713823838235,-397.3328317,0.00012878,2]
[323236199,1713823838244,-166.94364196,0.00012878,2]
[323236201,1713823838254,-155.0,0.00012878,2]
[323236203,1713823838263,-313.57148398,0.00012878,2]
[323236205,1713823838272,-342.94151451,0.00012878,2]
[323236207,1713823838282,-155.0,0.00012878,2]
[323236209,1713823838292,-545.63051093,0.00012878,2]
[323236211,1713823838302,-200.07388486,0.00012878,2]
[323236213,1713823838312,-155.0,0.00012878,2]
[323236215,1713823838323,-2354.33560631,0.00012878,2]
[323236217,1713823838332,-704.18979387,0.00012878,2]
[323236220,1713823838342,-155.0,0.00012878,2]
[323236222,1713823838351,-1131.27499451,0.00012878,2]
[323236224,1713823838361,-661.4013264,0.00012878,2]
[323236226,1713823838371,-638.68321936,0.00012878,2]
[323236228,1713823838383,-10563.53852359,0.00012878,2]
[323236230,1713823838392,-164.06127311,0.00012878,2]
[323236232,1713823838402,-571.0538058,0.00012878,2]
[323236234,1713823838411,-3715.15192631,0.00012878,2]
[323236236,1713823838421,-385.82293825,0.00012878,2]
[323236238,1713823838430,-1313.84130949,0.00012878,2]
[323236240,1713823838439,-193.32331842,0.00012878,2]
[323236242,1713823838449,-19499.51467127,0.00012878,2]
[323236244,1713823838458,-3204.54915056,0.00012878,2]
[323236246,1713823838467,-2318.1301147,0.00012878,2]
[323236248,1713823838476,-538.08631548,0.00012878,2]
[323236250,1713823838486,-161.05110816,0.00012878,2]
[323236252,1713823838495,-319.53845382,0.00012878,2]
[323236254,1713823838505,-306.4139103,0.00012878,2]
[323236256,1713823838514,-324.04239561,0.00012878,2]
[323236258,1713823838523,-155.0,0.00012878,2]
[323236260,1713823838532,-375.3482988,0.00012878,2]
[323236262,1713823838541,-266.780457,0.00012878,2]
[323236264,1713823838550,-403.97280851,0.00012878,2]
[323236266,1713823838559,-155.17839332,0.00012878,2]
[323236268,1713823838568,-2192.65866292,0.00012878,2]
[323236270,1713823838577,-353.31653569,0.00012878,2]
[323236272,1713823838586,-12885.05,0.00012879,2]
[323236274,1713823838595,-358.91245061,0.00012879,2]
[323236276,1713823838604,-1242.2292949,0.00012879,2]
[323236278,1713823838613,-500.0,0.00012879,2]
[323236280,1713823838626,-500.0,0.00012879,2]
[323236282,1713823838635,-500.0,0.00012879,2]
[323236284,1713823838644,-500.0,0.00012879,2]
[323236286,1713823838653,-500.0,0.00012879,2]
[323236288,1713823838662,-500.0,0.00012879,2]
[323236290,1713823838671,-500.0,0.00012879,2]
[323236292,1713823838680,-500.0,0.00012879,2]
[323236294,1713823838689,-500.0,0.00012879,2]
[323236296,1713823838698,-500.0,0.00012879,2]
[323236298,1713823838707,-500.0,0.00012879,2]
[323236300,1713823838720,-500.0,0.00012879,2]
[323236302,1713823838729,-500.0,0.00012879,2]
[323236303,1713823838737,-500.0,0.00012879,2]
[323236304,1713823838746,-500.0,0.00012879,2]
[323236305,1713823838755,-500.0,0.00012879,2]
[323236306,1713823838763,-500.0,0.00012879,2]
[323236307,1713823838772,-500.0,0.00012879,2]
[323236308,1713823838781,-500.0,0.00012879,2]
[323236309,1713823838790,-500.0,0.00012879,2]
[323236310,1713823838799,-609.5,0.00012879,2]
[323236311,1713823838808,-500.0,0.00012879,2]
[323236312,1713823838817,-500.0,0.00012879,2]
[323236313,1713823838826,-621.9,0.00012879,2]
[323236314,1713823838835,-649.0,0.00012879,2]
[323236315,1713823838843,-649.0,0.00012879,2]
[323236316,1713823838852,-649.0,0.00012879,2]
[323236318,1713823838861,-649.0,0.00012879,2]
[323236319,1713823838871,-649.0,0.00012879,2]
[323236322,1713823838881,-649.0,0.00012879,2]
[323236324,1713823838890,-649.0,0.00012879,2]
[323236326,1713823838899,-649.0,0.00012879,2]
[323236328,1713823838908,-649.0,0.00012879,2]
[323236330,1713823838917,-649.0,0.00012879,2]
[323236332,1713823838926,-621.0,0.0001288,2]
[323236334,1713823838935,-830758.96619524,0.0001288,2]
[323236373,1713823839292,-42223.477658,0.0001288,2]
[323236376,1713823839307,-866.13511901,0.0001288,2]
[323236378,1713823839321,-648.6,0.0001288,2]
[323236381,1713823839334,-379.88735711,0.0001288,2]
[323236386,1713823839373,-2936.09954424,0.0001288,2]
[323236389,1713823839391,-1571.2760012,0.0001288,2]
[323236391,1713823839405,-1325.81220542,0.0001288,2]
[323236394,1713823839418,-3466.66028671,0.0001288,2]
[323236398,1713823839431,-6265.55003545,0.0001288,2]
[323236402,1713823839445,-2022.6949102,0.0001288,2]
[323236406,1713823839460,-729.82228752,0.0001288,2]
[323236409,1713823839474,-4058.37164456,0.0001288,2]
[323236411,1713823839488,-9860.33139325,0.0001288,2]
[323236446,1713823839791,-1103.89179112,0.0001288,2]
[323236448,1713823839804,-7058.3,0.0001288,2]
[323236451,1713823839817,-3531.82491885,0.0001288,2]
[323236453,1713823839829,-696.2,0.0001288,2]
[323236455,1713823839841,-375576.92,0.0001288,2]
[323236461,1713823839881,-662.47809905,0.0001288,2]
[323236464,1713823839901,-252.43701998,0.0001288,2]
[323236466,1713823839914,-4896.92,0.0001288,2]
[323236469,1713823839926,-922.8938064,0.0001288,2]
[323236471,1713823839938,-769.4793577,0.0001288,2]
[323236474,1713823839956,-641.24104725,0.0001288,2]
[323236476,1713823839968,-45955.9814627,0.0001288,2]
[323236479,1713823839981,-188697.10695691,0.0001288,2]
[323236481,1713823839994,-476.56979241,0.0001288,2]
[323236483,1713823840007,-647.56071899,0.0001288,2]
[323236556,1713823842725,-278.05523846,0.0001288,2]
[323236558,1713823842738,-446.1795151,0.0001288,2]
[323236560,1713823842752,-34258.0187931,0.0001288,2]
[323236562,1713823842765,-880.029151,0.0001288,2]
[323236569,1713823842838,-646.38980015,0.0001288,2]
[323236571,1713823842852,-1104.6360013,0.0001288,2]
[323236583,1713823842999,-251.06618023,0.0001288,2]
[323236584,1713823843052,-1838.75385252,0.0001288,2]
[323236587,1713823843065,-298.774,0.0001288,2]
[323236589,1713823843079,-1962.2339759,0.0001288,2]
[323236591,1713823843093,-1883.65102,0.0001288,2]
[323236598,1713823846434,-166.7159054,0.00012869,2]
[323236599,1713823846444,-1143.28174922,0.0001288,2]
[323236600,1713823846524,-413.07240972,0.0001288,2]
[323236601,1713823846537,-626.08111507,0.0001288,2]
[323236602,1713823846549,-18560.266541,0.0001288,2]
[323236603,1713823846562,-176445.19409591,0.0001288,2]
[323236604,1713823846584,-7227.48892008,0.0001288,2]
[323236605,1713823846596,-5203.4324,0.0001288,2]
[323236606,1713823846609,-842.7485,0.0001288,2]
[323236607,1713823846630,-6231.59735195,0.0001288,2]
[323236608,1713823846644,-28264.79068205,0.0001288,2]
[323236609,1713823846656,-38828.63791428,0.0001288,2]
[323236610,1713823846679,-14241.2998816,0.0001288,2]
[323236611,1713823846691,-14522.91221009,0.0001288,2]
[323236618,1713823897405,270.0,0.00010352,2]
[323236619,1713824582385,282.68,9.522e-05,2]
[323236624,1713825031801,-359.32667582,0.00011289,2]
[323236625,1713825031811,-684.11075626,0.00011289,2]
[323236626,1713825031821,-9.36488949,0.0001129,2]
[323236627,1713825031834,-155.1297759,0.0001129,2]
[323236628,1713825031844,-1776.49143919,0.0001129,2]
[323236629,1713825031855,-155.78336681,0.00011297,2]
[323236630,1713825031865,-165.58,0.00011399,2]
[323236631,1713825031875,-200.0,0.00011437,2]
[323236632,1713825031885,-1562.67069808,0.00011449,2]
[323236633,1713825031898,-338.70707334,0.00011449,2]
[323236634,1713825031929,-928.84187792,0.00011449,2]
[323236635,1713825031942,-427.99010083,0.00011449,2]
[323236636,1713825031974,-825.25635464,0.00011449,2]
[323236637,1713825031986,-3032.973371,0.00011449,2]
[323236640,1713825032112,-312.06068321,0.00011449,2]
[323236641,1713825032127,-460.55939495,0.00011449,2]
[323236642,1713825032141,-5815.37062334,0.00011449,2]
[323236644,1713825032169,-990.04107208,0.00011449,2]
[323236657,1713825037793,-8655.60767021,0.00011449,2]
[323236659,1713825037803,-10780.02,0.0001145,2]
[323236660,1713825037812,-2182.57,0.00011499,2]
[323236661,1713825037822,-250.0,0.00011555,2]
[323236662,1713825037831,-267.72704526,0.0001159,2]
[323236663,1713825037842,-162.88,0.0001162,2]
[323236664,1713825037851,-163.15,0.00011623,2]
[323236665,1713825037861,-282.68,0.00011786,2]
[323236666,1713825037870,-1854.849015,0.00011835,2]
[323236667,1713825037880,-8856.38759154,0.00011837,2]
[323236668,1713825037889,-1000.0,0.00011902,2]
[323236669,1713825037898,-208604.90186732,0.00012,2]
[323236670,1713825037908,-1750.0,0.00012,2]
[323236671,1713825037917,-2500.0,0.00012579,2]
[323236672,1713825037926,-209.946,0.00012579,2]
[323236673,1713825037935,-434.7195,0.00012579,2]
[323236674,1713825037945,-256.0905,0.00012579,2]
[323236675,1713825037954,-167.33,0.00012658,2]
[323236676,1713825037963,-3964.2352,0.00012678,2]
[323236677,1713825037972,-2500.0,0.00012678,2]
[323236678,1713825037982,-7500.0,0.00012678,2]
[323236679,1713825037992,-36368.1847,0.00012679,2]
[323236680,1713825038001,-1242.2292,0.0001268,2]
[323236681,1713825038010,-17141.4014,0.0001268,2]
[323236682,1713825038021,-765.4445,0.0001268,2]
[323236683,1713825038031,-500.0,0.000127,2]
[323236684,1713825038041,-199.68084064,0.000127,2]
[323236685,1713825038050,-199.68084063,0.0001274,2]
[323236686,1713825038060,-2353.59888122,0.00012749,2]
[323236687,1713825038069,-251.27451082,0.00012749,2]
[323236688,1713825038079,-1221.59250652,0.0001276,2]
[323236689,1713825038093,-8200.05,0.00012778,2]
[323236690,1713825038102,-8200.05,0.00012778,2]
[323236691,1713825038112,-8200.05,0.00012778,2]
[323236692,1713825038122,-8200.05,0.00012778,2]
[323236694,1713825038132,-8200.05,0.00012778,2]
[323236696,1713825038141,-8200.05,0.00012778,2]
[323236698,1713825038150,-8200.05,0.00012778,2]
[323236700,1713825038159,-8200.05,0.00012778,2]
[323236702,1713825038169,-8200.05,0.00012778,2]
[323236704,1713825038179,-8200.05,0.00012778,2]
[323236706,1713825038188,-8200.05,0.00012778,2]
[323236708,1713825038197,-8200.05,0.00012778,2]
[323236710,1713825038207,-8200.05,0.00012778,2]
[323236712,1713825038216,-8200.05,0.00012778,2]
[323236714,1713825038224,-8200.05,0.00012778,2]
[323236716,1713825038232,-8200.05,0.00012778,2]
[323236718,1713825038240,-8200.05,0.00012778,2]
[323236720,1713825038249,-8200.05,0.00012778,2]
[323236722,1713825038258,-8200.05,0.00012778,2]
[323236724,1713825038266,-8200.05,0.00012778,2]
[323236726,1713825038275,-8200.05,0.00012778,2]
[323236728,1713825038284,-8200.05,0.00012778,2]
[323236730,1713825038293,-8200.05,0.00012778,2]
[323236732,1713825038301,-8200.21090523,0.00012778,2]
[323236734,1713825038310,-10874.1571,0.00012778,2]
[323236735,1713825038318,-26133.3351,0.00012778,2]
[323236738,1713825038328,-100000.0,0.0001278,2]
[323236740,1713825038337,-1000.0,0.0001278,2]
[323236742,1713825038346,-175.58953541,0.0001278,2]
[323236744,1713825038355,-6870.74911388,0.0001278,2]
[323236746,1713825038364,-172.1050513,0.0001278,2]
[323236748,1713825038376,-183.8577018,0.0001278,2]
[323236750,1713825038384,-181.38160287,0.0001278,2]
[323236751,1713825038394,-189.93127907,0.0001278,2]
[323236753,1713825038402,-199.68084063,0.0001278,2]
[323236755,1713825038411,-170.37924012,0.0001278,2]
[323236757,1713825038420,-5983.85250359,0.0001278,2]
[323236760,1713825038429,-214.91598447,0.0001279,2]
[323236762,1713825038438,-6870.74911385,0.00012795,2]
[323236764,1713825038448,-39581.57196249,0.00012798,2]
[323236766,1713825038457,-500.0,0.00012799,2]
[323236768,1713825038466,-1000.0,0.000128,2]
[323236770,1713825038476,-197537.13096839,0.000128,2]
[323236772,1713825038485,-979.82244926,0.000128,2]
[323236774,1713825038494,-6870.74911385,0.00012811,2]
[323236776,1713825038503,-183.85770177,0.00012823,2]
[323236778,1713825038512,-6870.74911385,0.00012826,2]
[323236780,1713825038521,-6870.74911385,0.00012842,2]
[323236782,1713825038530,-6870.74911385,0.00012857,2]
[323236784,1713825038539,-172.1050513,0.00012865,2]
[323236786,1713825038548,-183.85770177,0.00012865,2]
[323236788,1713825038558,-181.38160287,0.00012865,2]
[323236790,1713825038567,-166.47946953,0.00012868,2]
[323236792,1713825038576,-214.91598447,0.0001287,2]
[323236794,1713825038585,-214.91598447,0.0001287,2]
[323236796,1713825038594,-6870.74911385,0.00012873,2]
[323236798,1713825038604,-750.24025643,0.00012877,2]
[323236800,1713825038613,-785.04757384,0.00012878,2]
[323236802,1713825038626,-161.23398657,0.00012878,2]
[323236804,1713825038636,-353.31653569,0.00012878,2]
[323236806,1713825038645,-155.17839332,0.00012878,2]
[323236808,1713825038654,-375.3482988,0.00012878,2]
[323236810,1713825038663,-266.780457,0.00012878,2]
[323236812,1713825038672,-403.97280851,0.00012878,2]
[323236814,1713825038681,-155.0,0.00012878,2]
[323236816,1713825038691,-2192.65866292,0.00012878,2]
[323236818,1713825038700,-324.04239561,0.00012878,2]
[323236820,1713825038710,-319.53845382,0.00012878,2]
[323236822,1713825038719,-306.4139103,0.00012878,2]
[323236824,1713825038728,-2318.1301147,0.00012878,2]
[323236826,1713825038737,-161.05110816,0.00012878,2]
[323236828,1713825038747,-3204.54915056,0.00012878,2]
[323236830,1713825038756,-19499.51467127,0.00012878,2]
[323236832,1713825038765,-265.44673458,0.00012878,2]
[323236834,1713825038774,-385.82293825,0.00012878,2]
[323236836,1713825038783,-193.32331842,0.00012878,2]
[323236838,1713825038792,-1313.84130949,0.00012878,2]
[323236840,1713825038801,-3715.15192631,0.00012878,2]
[323236842,1713825038810,-571.0538058,0.00012878,2]
[323236844,1713825038819,-10563.53852359,0.00012878,2]
[323236846,1713825038828,-661.4013264,0.00012878,2]
[323236848,1713825038837,-155.0,0.00012878,2]
[323236850,1713825038846,-342.94151451,0.00012878,2]
[323236852,1713825038855,-638.68321936,0.00012878,2]
[323236854,1713825038864,-313.57148398,0.00012878,2]
[323236856,1713825038877,-166.94364196,0.00012878,2]
[323236858,1713825038886,-155.0,0.00012878,2]
[323236860,1713825038896,-155.0,0.00012878,2]
[323236863,1713825038906,-2354.33560631,0.00012878,2]
[323236864,1713825038915,-156.70914187,0.00012878,2]
[323236866,1713825038924,-305.07906936,0.00012878,2]
[323236868,1713825038933,-200.07388486,0.00012878,2]
[323236870,1713825038942,-155.45900507,0.00012878,2]
[323236872,1713825038951,-155.0,0.00012878,2]
[323236874,1713825038960,-545.63051093,0.00012878,2]
[323236877,1713825038969,-207.28883958,0.00012878,2]
[323236879,1713825038978,-704.18979387,0.00012878,2]
[323236881,1713825038988,-407.97409068,0.00012878,2]
[323236883,1713825038997,-301.07124224,0.00012878,2]
[323236885,1713825039008,-155.0,0.00012878,2]
[323236887,1713825039017,-155.30008766,0.00012878,2]
[323236889,1713825039026,-155.09393616,0.00012878,2]
[323236891,1713825039035,-239.68779562,0.00012878,2]
[323236893,1713825039044,-221.72184924,0.00012878,2]
[323236895,1713825039053,-1932.59443536,0.00012878,2]
[323236897,1713825039062,-155.0,0.00012878,2]
[323236899,1713825039071,-155.2401728,0.00012878,2]
[323236901,1713825039080,-1058.36793939,0.00012878,2]
[323236903,1713825039094,-155.0,0.00012878,2]
[323236905,1713825039103,-226.81044138,0.00012878,2]
[323236907,1713825039112,-156.3850435,0.00012878,2]
[323236908,1713825039120,-1292.26948172,0.00012878,2]
[323236910,1713825039130,-155.0,0.00012878,2]
[323236913,1713825039139,-969.32211178,0.00012878,2]
[323236915,1713825039149,-429.10163634,0.00012879,2]
[323236916,1713825039158,-509.64,0.00012879,2]
[323236917,1713825039167,-509.64,0.00012879,2]
[323236918,1713825039176,-509.64,0.00012879,2]
[323236919,1713825039185,-509.64,0.00012879,2]
[323236920,1713825039194,-509.64,0.00012879,2]
[323236921,1713825039203,-509.64,0.00012879,2]
[323236922,1713825039212,-509.64,0.00012879,2]
[323236923,1713825039221,-509.64,0.00012879,2]
[323236924,1713825039230,-509.64,0.00012879,2]
[323236925,1713825039240,-509.64,0.00012879,2]
[323236927,1713825039276,-649.0,0.00012879,2]
[323236929,1713825039287,-649.0,0.00012879,2]
[323236931,1713825039296,-649.0,0.00012879,2]
[323236933,1713825039307,-649.0,0.00012879,2]
[323236934,1713825039317,-649.0,0.00012879,2]
[323236937,1713825039328,-649.0,0.00012879,2]
[323236939,1713825039339,-649.0,0.00012879,2]
[323236940,1713825039349,-649.0,0.00012879,2]
[323236943,1713825039359,-649.0,0.00012879,2]
[323236945,1713825039369,-649.0,0.00012879,2]
[323236946,1713825039382,-747.0,0.0001288,2]
[323236948,1713825039392,-12885.05,0.0001288,2]
[323236951,1713825039402,-2557662.31974706,0.0001288,2]
[323236953,1713825039411,-3000.0,0.0001288,2]
[323236955,1713825039420,-6870.74911385,0.00012888,2]
[323236957,1713825039429,-56339.7315227,0.0001289,2]
[323236959,1713825039438,-1000.0,0.00012893,2]
[323236961,1713825039447,-500.0,0.00012893,2]
[323236963,1713825039456,-1000.0,0.00012894,2]
[323236965,1713825039465,-1000.0,0.00012894,2]
[323236967,1713825039474,-1000.0,0.00012894,2]
[323236969,1713825039483,-1000.0,0.00012894,2]
[323236971,1713825039493,-500.0,0.00012894,2]
[323236972,1713825039502,-500.0,0.00012894,2]
[323236973,1713825039511,-500.0,0.00012899,2]
[323236974,1713825039520,-500.0,0.00012899,2]
[323236975,1713825039530,-707.3,0.00012899,2]
[323236976,1713825039539,-707.3,0.00012899,2]
[323236978,1713825039549,-707.3,0.00012899,2]
[323236980,1713825039558,-707.3,0.00012899,2]
[323236982,1713825039567,-707.3,0.00012899,2]
[323236984,1713825039576,-707.44529181,0.00012899,2]
[323236986,1713825039585,-509.64,0.00012899,2]
[323236988,1713825039594,-509.64,0.00012899,2]
[323236990,1713825039603,-439460.82376299,0.000129,2]
[323237021,1713825039904,-5281.19572199,0.000129,2]
[323237044,1713825040139,-59828.64902936,0.000129,2]
[323237046,1713825040148,-10000.0,0.000129,2]
[323237048,1713825040158,-6870.74911385,0.00012904,2]
[323237050,1713825040167,-183.85770177,0.00012908,2]
[323237051,1713825040176,-6870.74911385,0.00012919,2]
[323237054,1713825040185,-509.64,0.00012922,2]
[323237057,1713825040194,-6870.74911385,0.00012935,2]
[323237059,1713825040203,-500.0,0.00012935,2]
[323237061,1713825040214,-500.0,0.00012935,2]
[323237063,1713825040223,-500.0,0.00012935,2]
[323237065,1713825040232,-500.0,0.00012935,2]
[323237067,1713825040241,-503.4685,0.00012935,2]
[323237069,1713825040251,-175.5895354,0.0001295,2]
[323237071,1713825040260,-6870.74911385,0.0001295,2]
[323237073,1713825040269,-172.1050513,0.0001295,2]
[323237075,1713825040278,-183.85770177,0.0001295,2]
[323237077,1713825040287,-181.38160287,0.0001295,2]
[323237078,1713825040296,-6003.4141854,0.00012987,2]
[323237079,1713825040305,-296.8939168,0.00012987,2]
[323237080,1713825040314,-5026.51504,0.00012991,2]
[323237081,1713825040323,-4049.6158945,0.00012991,2]
[323237082,1713825040332,-3072.7167491,0.00012991,2]
[323237083,1713825040341,-2095.8176037,0.00012991,2]
[323237084,1713825040351,-296.8939168,0.00012991,2]
[323237085,1713825040361,-296.8939168,0.00012991,2]
[323237086,1713825040372,-296.8939168,0.00012991,2]
[323237087,1713825040382,-296.8939168,0.00012991,2]
[323237088,1713825040393,-5346.1990271,0.00012996,2]
[323237089,1713825040403,-500.0,0.00012997,2]
[323237090,1713825040414,-500.0,0.00012997,2]
[323237091,1713825040425,-500.0,0.00012997,2]
[323237092,1713825040435,-500.0,0.00012997,2]
[323237093,1713825040445,-207.19321246,0.00012997,2]
[323237094,1713825040455,-5844.7365871,0.00012997,2]
[323237095,1713825040466,-509.64,0.00012997,2]
[323237096,1713825040476,-509.64,0.00012997,2]
[323237097,1713825040486,-509.64,0.00012997,2]
[323237098,1713825040496,-509.64,0.00012997,2]
[323237099,1713825040507,-1088349.79870307,0.00012998,2]
[323237100,1713825040517,-509.64,0.00012999,2]
[323237101,1713825040528,-509.64,0.00012999,2]
[323237102,1713825040538,-509.64,0.00012999,2]
[323237103,1713825040548,-509.64,0.00012999,2]
[323237104,1713825040558,-509.64,0.00012999,2]
[323237105,1713825040568,-509.64,0.00012999,2]
[323237106,1713825040578,-509.68,0.00012999,2]
[323237107,1713825040589,-23322.7488532,0.00013,2]
[323237108,1713825040601,-1335.7,0.00013,2]
[323237109,1713825040639,-20050.72586938,0.00013,2]
[323237110,1713825040651,-38816.59706,0.00013,2]
[323237111,1713825040664,-28826.03243114,0.00013,2]
[323237112,1713825041080,-1149.95747318,0.00013,2]
[323237113,1713825041095,-625.82636694,0.00013,2]
[323237114,1713825041108,-802.41140726,0.00013,2]
[323237119,1713825042854,-1049.700003,0.0001278,2]
[323237120,1713825042866,-450.180002,0.0001278,2]
[323237130,1713825046323,-2600.9879875,0.0001278,2]
[323237131,1713825046333,-5983.85250359,0.00012865,2]
[323237132,1713825046342,-4100.86799248,0.00012865,2]
[323237133,1713825046351,-1000.0,0.00012922,2]
[323237134,1713825046360,-5983.85250359,0.0001295,2]
[323237135,1713825046370,-359.60743979,0.00012999,2]
[323237136,1713825046379,-302.74811718,0.00012999,2]
[323237137,1713825046388,-24170.77461529,0.00013,2]
[323237138,1713825046399,-95814.85519899,0.00013,2]
[323237139,1713825046475,-7.53672944,0.00013,2]
[323237140,1713825046511,-1415.49330928,0.00013,2]
[323237141,1713825046546,-207.19321246,0.00012999,2]
[323237142,1713825046558,-2888.21431539,0.00013,2]
[323237143,1713825046572,-457098.57483176,0.00013,2]
[323237144,1713825046583,-590.82,0.00013,2]
[323237145,1713825046594,-1136.2832944,0.00013,2]
[323237146,1713825046604,-2312.60774233,0.00013,2]
[323237147,1713825046622,-2603.8544453,0.00013,2]
[323237148,1713825046634,-91590.15684999,0.00013,2]
[323237151,1713825065918,279.13,0.00010823,2]
[323237152,1713825233407,628.042305,0.00022,30]
[323237153,1713825244528,1056.042305,0.00022,30]
[323237154,1713825249372,1056.042305,0.00022,30]
[323237155,1713825277863,2112.042305,0.00022,30]
[323237156,1713825306808,2112.042305,0.00022,30]
[323237157,1713825316655,628.042305,0.00022,30]
[323237158,1713825317923,628.042305,0.00022,30]
[323237159,1713825320754,628.042305,0.00022,30]
[323237160,1713825344619,314.042307,0.00022,30]
[323237161,1713825349669,314.042307,0.00022,30]
[323237162,1713825350563,314.042307,0.00022,30]
[323237163,1713825351381,314.042307,0.00022,30]
[323237164,1713825352182,314.042307,0.00022,30]
[323237165,1713825358551,314.042307,0.00022,30]
[323237166,1713825364407,157.042307,0.00022,30]
[323237167,1713825366147,157.042307,0.00022,30]
[323237168,1713825367030,157.042307,0.00022,30]
[323237169,1713825367828,157.042307,0.00022,30]
[323237170,1713825368602,157.042307,0.00022,30]
[323237171,1713825369360,157.042307,0.00022,30]
[323237172,1713825370099,157.042307,0.00022,30]
[323237173,1713825370885,157.042307,0.00022,30]
[323237174,1713825372089,157.042307,0.00022,30]
[323237175,1713825372664,157.042307,0.00022,30]
[323237176,1713825393133,157.042307,0.00022,30]
[323237177,1713825394265,157.042307,0.00022,30]
[323237178,1713825412210,358.042307,0.00022,30]
[323237179,1713825536820,265.17,9.978e-05,2]
[323237180,1713825860975,-571.0,0.00012997,7]
[323237181,1713826072521,-0.37171296,0.00012997,7]
[323237182,1713826072548,-149.62828704,0.00013697,3]
[323237183,1713826191441,251.91,9.901e-05,2]
[323237198,1713826232151,-1220.96744963,0.0001175,2]
[323237199,1713826232160,-800.0,0.0001185,2]
[323237200,1713826232169,-471.12163728,0.00011851,2]
[323237201,1713826232181,-983.24836272,0.00011851,2]
[323237202,1713826232190,-165.67,0.00011887,2]
[323237203,1713826232200,-250.0,0.0001189,2]
[323237204,1713826232210,-163.15,0.00011895,2]
[323237205,1713826232219,-200.0,0.000119,2]
[323237206,1713826232228,-1623.26,0.00011945,2]
[323237207,1713826232238,-150.0,0.00012027,2]
[323237208,1713826232247,-165.64,0.00012067,2]
[323237209,1713826232255,-150.99,0.00012067,2]
[323237210,1713826232265,-251.91,0.00012165,2]
[323237211,1713826232273,-156.67498363,0.0001248,2]
[323237212,1713826232283,-500.0,0.00012777,2]
[323237213,1713826232292,-499.99,0.00012777,2]
[323237214,1713826232301,-500.0,0.00012795,2]
[323237215,1713826232310,-500.0,0.00012799,2]
[323237216,1713826232318,-2500.0,0.00012832,2]
[323237217,1713826232330,-166.47946953,0.00012869,2]
[323237218,1713826232339,-2850.51858,0.0001287,2]
[323237219,1713826232349,-500.0,0.00012879,2]
[323237220,1713826232358,-500.0,0.00012879,2]
[323237221,1713826232369,-500.0,0.00012879,2]
[323237222,1713826232378,-567.52,0.00012879,2]
[323237223,1713826232387,-7500.0,0.00012891,2]
[323237224,1713826232396,-923.44810412,0.00012894,2]
[323237243,1713826237985,-76.55189588,0.00012894,2]
[323237245,1713826237995,-1000.0,0.00012895,2]
[323237247,1713826238005,-925.53809972,0.00012895,2]
[323237250,1713826238018,-74.46190028,0.00012895,2]
[323237252,1713826238028,-1000.0,0.00012895,2]
[323237254,1713826238037,-928.77581772,0.00012895,2]
[323237256,1713826238048,-71.22418228,0.00012895,2]
[323237258,1713826238058,-1000.0,0.00012895,2]
[323237260,1713826238067,-500.0,0.00012895,2]
[323237262,1713826238076,-500.0,0.00012895,2]
[323237264,1713826238085,-3137.70258391,0.00012898,2]
[323237266,1713826238096,-1023.22456633,0.00012898,2]
[323237271,1713826238135,-5839.07284976,0.00012898,2]
[323237273,1713826238144,-1671.2372,0.00012899,2]
[323237275,1713826238153,-55680.07064203,0.00012899,2]
[323237278,1713826238310,-392.8525,0.00012899,2]
[323237279,1713826238321,-10017.88510027,0.00012899,2]
[323237280,1713826239976,-163.2,0.00012182,2]
[323237281,1713826239986,-291.87799912,0.00012899,2]